[Event "Late-Titled-Tuesday-Blitz-August-29-2023"]
[Site "Chess.com"]
[Date "2023.08.29"]
[Round "1"]
[White "Eternauta2400"]
[Black "jcmesafischer"]
[Result "1-0"]
[WhiteElo "2835"]
[BlackElo "2448"]
[TimeControl "180+1"]
[EndTime "14:01:20 PDT"]
[Termination "Eternauta2400 won by resignation"]

1. c4 {[%clk 0:03:00.9]} 1... Nf6 {[%clk 0:02:59.2]} 2. Nc3 {[%clk 0:03:00.9]}
2... e6 {[%clk 0:02:58.7]} 3. e4 {[%clk 0:03:01.2]} 3... d5 {[%clk 0:02:58.6]}
4. cxd5 {[%clk 0:03:01.5]} 4... exd5 {[%clk 0:02:59.3]} 5. e5 {[%clk 0:03:02.4]}
5... d4 {[%clk 0:02:59.8]} 6. exf6 {[%clk 0:03:02.8]} 6... dxc3 {[%clk
0:03:00.1]} 7. Bb5+ {[%clk 0:03:03.5]} 7... c6 {[%clk 0:02:59.6]} 8. Qe2+ {[%clk
0:03:04.2]} 8... Be6 {[%clk 0:02:58.9]} 9. Bc4 {[%clk 0:03:04.8]} 9... Qxf6
{[%clk 0:02:58.6]} 10. dxc3 {[%clk 0:03:04.4]} 10... Nd7 {[%clk 0:02:54.9]} 11.
Bxe6 {[%clk 0:03:03.4]} 11... Qxe6 {[%clk 0:02:54.6]} 12. Qxe6+ {[%clk
0:03:03.3]} 12... fxe6 {[%clk 0:02:55.5]} 13. Nf3 {[%clk 0:03:04.1]} 13... h6
{[%clk 0:02:52.2]} 14. O-O {[%clk 0:03:04.3]} 14... Kf7 {[%clk 0:02:52.1]} 15.
Rd1 {[%clk 0:03:00.6]} 15... Rd8 {[%clk 0:02:50.8]} 16. Be3 {[%clk 0:02:56.6]}
16... b6 {[%clk 0:02:49]} 17. Ne5+ {[%clk 0:02:51.6]} 17... Ke8 {[%clk
0:02:47.7]} 18. Nxc6 {[%clk 0:02:51.5]} 18... Rc8 {[%clk 0:02:47.3]} 19. Nxa7
{[%clk 0:02:51.5]} 19... Ra8 {[%clk 0:02:44.4]} 20. Nb5 {[%clk 0:02:50.9]} 20...
Ne5 {[%clk 0:02:44.4]} 21. Nc7+ {[%clk 0:02:50.8]} 1-0

[Event "Late-Titled-Tuesday-Blitz-August-29-2023"]
[Site "Chess.com"]
[Date "2023.08.29"]
[Round "1"]
[White "HansOnTwitch"]
[Black "tgpgoat"]
[Result "1-0"]
[WhiteElo "3002"]
[BlackElo "2502"]
[TimeControl "180+1"]
[EndTime "14:01:50 PDT"]
[Termination "HansOnTwitch won by resignation"]

1. e4 {[%clk 0:02:59.2]} 1... c5 {[%clk 0:02:59]} 2. Nf3 {[%clk 0:02:59]} 2...
e6 {[%clk 0:02:59.1]} 3. d4 {[%clk 0:02:58.2]} 3... cxd4 {[%clk 0:03:00]} 4.
Nxd4 {[%clk 0:02:58.7]} 4... Nc6 {[%clk 0:03:00.4]} 5. Nc3 {[%clk 0:02:58.5]}
5... Qc7 {[%clk 0:03:00.7]} 6. Be2 {[%clk 0:02:58.9]} 6... a6 {[%clk 0:03:00.6]}
7. Nxc6 {[%clk 0:02:59.1]} 7... bxc6 {[%clk 0:03:00.3]} 8. Qd3 {[%clk
0:02:59.4]} 8... Nf6 {[%clk 0:02:54.7]} 9. Qg3 {[%clk 0:02:58.7]} 9... Qxg3
{[%clk 0:02:55]} 10. hxg3 {[%clk 0:02:58.7]} 10... Bb4 {[%clk 0:02:54.9]} 11.
Bd2 {[%clk 0:02:56.6]} 11... d6 {[%clk 0:02:51.4]} 12. g4 {[%clk 0:02:52.5]}
12... O-O {[%clk 0:02:48.4]} 13. f3 {[%clk 0:02:52.8]} 13... Bb7 {[%clk
0:02:39.6]} 14. g5 {[%clk 0:02:47.7]} 14... Nd7 {[%clk 0:02:35.3]} 15. O-O-O
{[%clk 0:02:47.1]} 15... d5 {[%clk 0:02:28.5]} 16. Rh4 {[%clk 0:02:44.9]} 16...
Rfd8 {[%clk 0:02:19.8]} 17. exd5 {[%clk 0:02:40.5]} 17... cxd5 {[%clk
0:02:18.4]} 18. Rxb4 {[%clk 0:02:38.8]} 1-0

[Event "Late-Titled-Tuesday-Blitz-August-29-2023"]
[Site "Chess.com"]
[Date "2023.08.29"]
[Round "1"]
[White "AvitalBor"]
[Black "bipe137"]
[Result "1-0"]
[WhiteElo "2741"]
[BlackElo "2424"]
[TimeControl "180+1"]
[EndTime "14:02:43 PDT"]
[Termination "AvitalBor won by resignation"]

1. e4 {[%clk 0:02:59.6]} 1... c5 {[%clk 0:02:59.5]} 2. Nc3 {[%clk 0:02:59.8]}
2... e6 {[%clk 0:02:59.6]} 3. g3 {[%clk 0:02:59.4]} 3... d5 {[%clk 0:02:58.3]}
4. Bg2 {[%clk 0:02:56.7]} 4... d4 {[%clk 0:02:58.2]} 5. Nce2 {[%clk 0:02:57]}
5... e5 {[%clk 0:02:58.8]} 6. f4 {[%clk 0:02:57.1]} 6... Nc6 {[%clk 0:02:58.3]}
7. Nf3 {[%clk 0:02:56.8]} 7... exf4 {[%clk 0:02:53.6]} 8. Nxf4 {[%clk
0:02:54.8]} 8... Nf6 {[%clk 0:02:52.9]} 9. O-O {[%clk 0:02:54]} 9... Be7 {[%clk
0:02:40.4]} 10. e5 {[%clk 0:02:54]} 10... Nd5 {[%clk 0:02:37.1]} 11. Nxd5 {[%clk
0:02:53.9]} 11... Qxd5 {[%clk 0:02:36.8]} 12. Ng5 {[%clk 0:02:53.4]} 12... Qd7
{[%clk 0:02:13.9]} 13. Nxf7 {[%clk 0:02:52.7]} 13... O-O {[%clk 0:02:12.2]} 14.
Qh5 {[%clk 0:02:40.6]} 14... Qe6 {[%clk 0:01:56.2]} 15. Ng5 {[%clk 0:02:28.6]}
15... Rxf1+ {[%clk 0:01:55.5]} 16. Bxf1 {[%clk 0:02:27.6]} 16... Bxg5 {[%clk
0:01:54.1]} 17. Bc4 {[%clk 0:02:21.2]} 1-0

[Event "Late-Titled-Tuesday-Blitz-August-29-2023"]
[Site "Chess.com"]
[Date "2023.08.29"]
[Round "1"]
[White "vincentmasuka"]
[Black "schachlana"]
[Result "1-0"]
[WhiteElo "2603"]
[BlackElo "2290"]
[TimeControl "180+1"]
[EndTime "14:02:46 PDT"]
[Termination "vincentmasuka won by resignation"]

1. c4 {[%clk 0:02:59]} 1... g6 {[%clk 0:02:59.1]} 2. g3 {[%clk 0:02:58.4]} 2...
Bg7 {[%clk 0:02:59.7]} 3. Bg2 {[%clk 0:02:59]} 3... d6 {[%clk 0:03:00.3]} 4. Nc3
{[%clk 0:02:57.9]} 4... e5 {[%clk 0:03:00.2]} 5. Nf3 {[%clk 0:02:57.5]} 5... f5
{[%clk 0:03:00.6]} 6. d3 {[%clk 0:02:57.3]} 6... Nf6 {[%clk 0:03:01.3]} 7. O-O
{[%clk 0:02:57.3]} 7... O-O {[%clk 0:03:02]} 8. Rb1 {[%clk 0:02:56.6]} 8... Be6
{[%clk 0:02:56.2]} 9. Ng5 {[%clk 0:02:52.7]} 9... Qc8 {[%clk 0:02:31]} 10. Nxe6
{[%clk 0:02:51]} 10... Qxe6 {[%clk 0:02:31.9]} 11. Bxb7 {[%clk 0:02:49.9]} 11...
Nbd7 {[%clk 0:02:31.9]} 12. Bxa8 {[%clk 0:02:49.7]} 12... Rxa8 {[%clk
0:02:32.8]} 13. b4 {[%clk 0:02:46.9]} 13... f4 {[%clk 0:02:28.8]} 14. e3 {[%clk
0:02:38.3]} 14... Nh5 {[%clk 0:02:17.3]} 15. Nd5 {[%clk 0:02:29.1]} 15... Rf8
{[%clk 0:02:13]} 16. exf4 {[%clk 0:02:25.2]} 16... Qh3 {[%clk 0:02:11.3]} 17.
Qf3 {[%clk 0:02:17.2]} 17... exf4 {[%clk 0:02:03.7]} 18. Qg2 {[%clk 0:02:15.5]}
18... Qf5 {[%clk 0:01:50.6]} 19. Ne7+ {[%clk 0:02:14.3]} 1-0

[Event "Late-Titled-Tuesday-Blitz-August-29-2023"]
[Site "Chess.com"]
[Date "2023.08.29"]
[Round "1"]
[White "Goffredo_Fofi"]
[Black "ChEsper99"]
[Result "1-0"]
[WhiteElo "2543"]
[BlackElo "2130"]
[TimeControl "180+1"]
[EndTime "14:02:50 PDT"]
[Termination "Goffredo_Fofi won by resignation"]

1. g3 {[%clk 0:03:00.9]} 1... d5 {[%clk 0:02:54.6]} 2. Bg2 {[%clk 0:03:01.4]}
2... c6 {[%clk 0:02:55]} 3. b3 {[%clk 0:02:58.1]} 3... Nf6 {[%clk 0:02:45.2]} 4.
Bb2 {[%clk 0:02:57.5]} 4... Bf5 {[%clk 0:02:44.4]} 5. d3 {[%clk 0:02:56.9]} 5...
e6 {[%clk 0:02:41.9]} 6. Nd2 {[%clk 0:02:57.3]} 6... Bd6 {[%clk 0:02:41.9]} 7.
e4 {[%clk 0:02:56.9]} 7... dxe4 {[%clk 0:02:23.4]} 8. dxe4 {[%clk 0:02:57.8]}
8... Bg4 {[%clk 0:02:14.2]} 9. f3 {[%clk 0:02:57.1]} 9... Bh5 {[%clk 0:02:06.5]}
10. e5 {[%clk 0:02:52]} 10... Be7 {[%clk 0:02:05]} 11. exf6 {[%clk 0:02:51.5]}
11... Bxf6 {[%clk 0:02:05]} 12. Bxf6 {[%clk 0:02:47.2]} 12... Qxf6 {[%clk
0:02:05.9]} 13. Ne4 {[%clk 0:02:45.9]} 13... Qe5 {[%clk 0:02:01]} 14. Ne2 {[%clk
0:02:31.9]} 14... O-O {[%clk 0:01:56]} 15. Qd4 {[%clk 0:02:14.2]} 15... Qa5+
{[%clk 0:01:52.3]} 16. Qc3 {[%clk 0:02:09.6]} 16... Qb6 {[%clk 0:01:52.5]} 17.
Qc5 {[%clk 0:02:07.1]} 17... Qc7 {[%clk 0:01:52.9]} 18. Qxh5 {[%clk 0:02:06.3]}
1-0

[Event "Late-Titled-Tuesday-Blitz-August-29-2023"]
[Site "Chess.com"]
[Date "2023.08.29"]
[Round "1"]
[White "superfast64"]
[Black "promen1999"]
[Result "0-1"]
[WhiteElo "2453"]
[BlackElo "2850"]
[TimeControl "180+1"]
[EndTime "14:03:38 PDT"]
[Termination "promen1999 won by resignation"]

1. d4 {[%clk 0:03:00.9]} 1... d5 {[%clk 0:02:53.1]} 2. Bg5 {[%clk 0:03:01]} 2...
h5 {[%clk 0:02:50.8]} 3. h3 {[%clk 0:02:58.7]} 3... Nh6 {[%clk 0:02:50.4]} 4. e3
{[%clk 0:02:56.8]} 4... Nf5 {[%clk 0:02:50.3]} 5. Bd3 {[%clk 0:02:51.2]} 5...
Nc6 {[%clk 0:02:44.8]} 6. Nf3 {[%clk 0:02:49.4]} 6... f6 {[%clk 0:02:44.1]} 7.
Bf4 {[%clk 0:02:49.3]} 7... g5 {[%clk 0:02:44.5]} 8. Bh2 {[%clk 0:02:39.9]} 8...
Be6 {[%clk 0:02:29.8]} 9. c3 {[%clk 0:02:34.8]} 9... Qd7 {[%clk 0:02:29.7]} 10.
Nbd2 {[%clk 0:02:27.3]} 10... O-O-O {[%clk 0:02:28.8]} 11. e4 {[%clk 0:02:27.4]}
11... Nd6 {[%clk 0:02:22.2]} 12. Qe2 {[%clk 0:02:21.3]} 12... Bh6 {[%clk
0:02:16]} 13. O-O-O {[%clk 0:02:17.4]} 13... g4 {[%clk 0:02:15.3]} 14. hxg4
{[%clk 0:02:15.2]} 14... hxg4 {[%clk 0:02:14.7]} 15. Ne1 {[%clk 0:02:11.4]}
15... dxe4 {[%clk 0:02:12.2]} 16. Bxe4 {[%clk 0:02:08.6]} 16... Nxe4 {[%clk
0:02:11.8]} 17. Qxe4 {[%clk 0:02:08.4]} 17... Bf5 {[%clk 0:02:03.5]} 18. Qe2
{[%clk 0:02:06.2]} 18... Nb4 {[%clk 0:02:00.7]} 19. b3 {[%clk 0:01:58.2]} 19...
Nxa2+ {[%clk 0:01:32.3]} 20. Kb2 {[%clk 0:01:58.2]} 20... Nxc3 {[%clk
0:01:32.8]} 21. Qc4 {[%clk 0:01:54]} 21... Nxd1+ {[%clk 0:01:31.9]} 22. Ka2
{[%clk 0:01:52.4]} 22... Bxd2 {[%clk 0:01:29.5]} 0-1

[Event "Late-Titled-Tuesday-Blitz-August-29-2023"]
[Site "Chess.com"]
[Date "2023.08.29"]
[Round "1"]
[White "Mourinho_Jose"]
[Black "Beca95"]
[Result "0-1"]
[WhiteElo "2495"]
[BlackElo "2946"]
[TimeControl "180+1"]
[EndTime "14:03:41 PDT"]
[Termination "Beca95 won by resignation"]

1. Nf3 {[%clk 0:02:55.8]} 1... g6 {[%clk 0:02:58.6]} 2. g3 {[%clk 0:02:55.4]}
2... Bg7 {[%clk 0:02:56.4]} 3. d4 {[%clk 0:02:55.2]} 3... d6 {[%clk 0:02:55.9]}
4. Bg2 {[%clk 0:02:55]} 4... Nd7 {[%clk 0:02:56.4]} 5. O-O {[%clk 0:02:55.1]}
5... e5 {[%clk 0:02:56.8]} 6. c4 {[%clk 0:02:53.2]} 6... Nh6 {[%clk 0:02:56.5]}
7. dxe5 {[%clk 0:02:49.5]} 7... dxe5 {[%clk 0:02:55.1]} 8. Bg5 {[%clk
0:02:25.6]} 8... f6 {[%clk 0:02:53.7]} 9. Bxh6 {[%clk 0:02:25.4]} 9... Bxh6
{[%clk 0:02:54.6]} 10. Nc3 {[%clk 0:02:23.1]} 10... O-O {[%clk 0:02:49.6]} 11.
Nd2 {[%clk 0:02:15.9]} 11... f5 {[%clk 0:02:46.3]} 12. b4 {[%clk 0:02:01.1]}
12... e4 {[%clk 0:02:44.2]} 13. f4 {[%clk 0:01:55.8]} 13... exf3 {[%clk
0:02:31.6]} 14. Nxf3 {[%clk 0:01:52.7]} 14... Be3+ {[%clk 0:02:29.3]} 15. Kh1
{[%clk 0:01:52.7]} 15... c6 {[%clk 0:02:29.4]} 16. Qd3 {[%clk 0:01:40.6]} 16...
Qe7 {[%clk 0:02:28.8]} 17. Rad1 {[%clk 0:01:29.8]} 17... Nf6 {[%clk 0:02:28.1]}
18. Qd6 {[%clk 0:01:21.6]} 18... Qxd6 {[%clk 0:02:27.2]} 19. Rxd6 {[%clk
0:01:22.5]} 19... Kg7 {[%clk 0:02:02.9]} 20. Ng5 {[%clk 0:01:22]} 20... Bxg5
{[%clk 0:02:00.3]} 0-1

[Event "Late-Titled-Tuesday-Blitz-August-29-2023"]
[Site "Chess.com"]
[Date "2023.08.29"]
[Round "1"]
[White "chessmateto"]
[Black "Zkid"]
[Result "0-1"]
[WhiteElo "2455"]
[BlackElo "2853"]
[TimeControl "180+1"]
[EndTime "14:03:43 PDT"]
[Termination "Zkid won by resignation"]

1. c4 {[%clk 0:02:58.6]} 1... e5 {[%clk 0:02:53.8]} 2. Nc3 {[%clk 0:02:58.8]}
2... Nf6 {[%clk 0:02:53.7]} 3. g3 {[%clk 0:02:58.7]} 3... d5 {[%clk 0:02:53.2]}
4. cxd5 {[%clk 0:02:58.5]} 4... Nxd5 {[%clk 0:02:54.1]} 5. Bg2 {[%clk
0:02:58.5]} 5... Nb6 {[%clk 0:02:53.6]} 6. Nf3 {[%clk 0:02:58.5]} 6... Nc6
{[%clk 0:02:54]} 7. O-O {[%clk 0:02:58.9]} 7... Be7 {[%clk 0:02:53.6]} 8. a3
{[%clk 0:02:59.6]} 8... O-O {[%clk 0:02:52.7]} 9. b4 {[%clk 0:02:59.8]} 9... Be6
{[%clk 0:02:49.1]} 10. d3 {[%clk 0:02:58.6]} 10... f6 {[%clk 0:02:44.2]} 11. Ne4
{[%clk 0:02:53.9]} 11... a5 {[%clk 0:02:37.3]} 12. Nc5 {[%clk 0:02:50.9]} 12...
Bc8 {[%clk 0:02:31.6]} 13. Bd2 {[%clk 0:02:27.1]} 13... axb4 {[%clk 0:02:15.8]}
14. axb4 {[%clk 0:02:26.3]} 14... Rxa1 {[%clk 0:02:15.9]} 15. Qxa1 {[%clk
0:02:25.5]} 15... Nd5 {[%clk 0:02:16.2]} 16. Nxe5 {[%clk 0:02:00.8]} 16... Nxe5
{[%clk 0:01:57.6]} 17. Qa2 {[%clk 0:02:00.3]} 17... c6 {[%clk 0:01:55.9]} 18. e4
{[%clk 0:01:41.4]} 18... Bxc5 {[%clk 0:01:53.7]} 19. bxc5 {[%clk 0:01:41.9]}
19... Be6 {[%clk 0:01:44.7]} 20. exd5 {[%clk 0:01:41.9]} 20... Bxd5 {[%clk
0:01:44.5]} 21. Bxd5+ {[%clk 0:01:40.7]} 21... Qxd5 {[%clk 0:01:45.2]} 22. Qxd5+
{[%clk 0:01:37.9]} 22... cxd5 {[%clk 0:01:46.1]} 23. d4 {[%clk 0:01:33.4]} 23...
Nf3+ {[%clk 0:01:46.1]} 0-1

[Event "Late-Titled-Tuesday-Blitz-August-29-2023"]
[Site "Chess.com"]
[Date "2023.08.29"]
[Round "1"]
[White "js20000"]
[Black "jaldjald"]
[Result "1-0"]
[WhiteElo "2630"]
[BlackElo "2324"]
[TimeControl "180+1"]
[EndTime "14:04:02 PDT"]
[Termination "js20000 won by resignation"]

1. b3 {[%clk 0:02:58.2]} 1... e5 {[%clk 0:02:59.7]} 2. Bb2 {[%clk 0:02:59.1]}
2... Nc6 {[%clk 0:02:59.2]} 3. e4 {[%clk 0:02:58.9]} 3... Nf6 {[%clk 0:02:58.3]}
4. Nc3 {[%clk 0:02:58.4]} 4... Bc5 {[%clk 0:02:56.1]} 5. Bc4 {[%clk 0:02:52]}
5... d6 {[%clk 0:02:50.9]} 6. Nf3 {[%clk 0:02:51.3]} 6... O-O {[%clk 0:02:49.6]}
7. O-O {[%clk 0:02:51.1]} 7... Bg4 {[%clk 0:02:49]} 8. h3 {[%clk 0:02:48]} 8...
Bh5 {[%clk 0:02:49.1]} 9. Be2 {[%clk 0:02:47.5]} 9... Bxf3 {[%clk 0:02:36.4]}
10. Bxf3 {[%clk 0:02:46.5]} 10... Nd4 {[%clk 0:02:36.9]} 11. Na4 {[%clk
0:02:38.6]} 11... Nxf3+ {[%clk 0:02:32]} 12. Qxf3 {[%clk 0:02:39.5]} 12... Bb6
{[%clk 0:02:32.4]} 13. Nxb6 {[%clk 0:02:38.8]} 13... axb6 {[%clk 0:02:33.3]} 14.
d4 {[%clk 0:02:38.1]} 14... exd4 {[%clk 0:02:31]} 15. Bxd4 {[%clk 0:02:39]}
15... Re8 {[%clk 0:02:30.7]} 16. Rfe1 {[%clk 0:02:38.5]} 16... Nd7 {[%clk
0:02:19.6]} 17. a4 {[%clk 0:02:36.4]} 17... Ne5 {[%clk 0:02:18.4]} 18. Qg3
{[%clk 0:02:35.8]} 18... f6 {[%clk 0:02:10.3]} 19. Rad1 {[%clk 0:02:34.4]} 19...
Qd7 {[%clk 0:02:01.5]} 20. f4 {[%clk 0:02:31.7]} 20... Nc6 {[%clk 0:02:01.5]}
21. Bxf6 {[%clk 0:02:28.7]} 21... Qf7 {[%clk 0:01:56.6]} 22. Bc3 {[%clk
0:02:25]} 22... Re7 {[%clk 0:01:53.7]} 23. Rd5 {[%clk 0:02:15]} 23... Rae8
{[%clk 0:01:34.8]} 24. Bxg7 {[%clk 0:02:08.3]} 24... Rxe4 {[%clk 0:01:25]} 25.
Rxe4 {[%clk 0:02:09.2]} 25... Rxe4 {[%clk 0:01:22.4]} 26. Bh6+ {[%clk
0:02:02.8]} 26... Kh8 {[%clk 0:01:19.7]} 27. Rf5 {[%clk 0:02:02.5]} 27... Re1+
{[%clk 0:01:10.9]} 28. Qxe1 {[%clk 0:02:00.8]} 28... Qxf5 {[%clk 0:01:10.8]} 29.
Qe8+ {[%clk 0:02:00.3]} 1-0

[Event "Late-Titled-Tuesday-Blitz-August-29-2023"]
[Site "Chess.com"]
[Date "2023.08.29"]
[Round "1"]
[White "GoltsevDmitry2000"]
[Black "Garmendiarov"]
[Result "1-0"]
[WhiteElo "2602"]
[BlackElo "2301"]
[TimeControl "180+1"]
[EndTime "14:04:02 PDT"]
[Termination "GoltsevDmitry2000 won by checkmate"]

1. e4 {[%clk 0:02:57.6]} 1... c5 {[%clk 0:03:00.1]} 2. Nf3 {[%clk 0:02:57.5]}
2... d6 {[%clk 0:03:00.5]} 3. d4 {[%clk 0:02:57.6]} 3... cxd4 {[%clk 0:03:01.4]}
4. Nxd4 {[%clk 0:02:58.5]} 4... Nf6 {[%clk 0:03:01.9]} 5. Nc3 {[%clk 0:02:58]}
5... a6 {[%clk 0:03:02.5]} 6. Be2 {[%clk 0:02:57.7]} 6... e5 {[%clk 0:03:02.6]}
7. Nb3 {[%clk 0:02:57.8]} 7... Be7 {[%clk 0:03:02.8]} 8. Be3 {[%clk 0:02:58.2]}
8... Be6 {[%clk 0:03:02.8]} 9. O-O {[%clk 0:02:58.6]} 9... O-O {[%clk
0:03:02.6]} 10. f4 {[%clk 0:02:58.9]} 10... Qc7 {[%clk 0:02:59.3]} 11. f5 {[%clk
0:02:58.4]} 11... Bc4 {[%clk 0:02:58.9]} 12. Bd3 {[%clk 0:02:57.2]} 12... Nbd7
{[%clk 0:02:56.1]} 13. Nd2 {[%clk 0:02:55.4]} 13... b5 {[%clk 0:02:24.7]} 14. g4
{[%clk 0:02:54.4]} 14... d5 {[%clk 0:02:06.5]} 15. g5 {[%clk 0:02:50.4]} 15...
Nxe4 {[%clk 0:02:03]} 16. Ncxe4 {[%clk 0:02:46]} 16... dxe4 {[%clk 0:02:00.1]}
17. Nxe4 {[%clk 0:02:46.9]} 17... Bxd3 {[%clk 0:01:38.7]} 18. cxd3 {[%clk
0:02:45.3]} 18... f6 {[%clk 0:01:12.5]} 19. g6 {[%clk 0:02:42]} 19... Qb7 {[%clk
0:00:53.4]} 20. Qh5 {[%clk 0:02:40.1]} 20... h6 {[%clk 0:00:32]} 21. Bxh6 {[%clk
0:02:39]} 21... Rfd8 {[%clk 0:00:29.7]} 22. Bxg7 {[%clk 0:02:36.7]} 22... Nf8
{[%clk 0:00:22.9]} 23. Qh8# {[%clk 0:02:36.6]} 1-0

[Event "Late-Titled-Tuesday-Blitz-August-29-2023"]
[Site "Chess.com"]
[Date "2023.08.29"]
[Round "1"]
[White "Macron20hTF1"]
[Black "KafkaesqueKnight"]
[Result "1-0"]
[WhiteElo "2624"]
[BlackElo "2321"]
[TimeControl "180+1"]
[EndTime "14:04:03 PDT"]
[Termination "Macron20hTF1 won by resignation"]

1. Nf3 {[%clk 0:03:00.4]} 1... d5 {[%clk 0:02:56.6]} 2. e3 {[%clk 0:02:59.5]}
2... Nf6 {[%clk 0:02:56.9]} 3. c4 {[%clk 0:03:00.2]} 3... e6 {[%clk 0:02:56.7]}
4. Nc3 {[%clk 0:03:00.9]} 4... Be7 {[%clk 0:02:55.5]} 5. b3 {[%clk 0:03:01.3]}
5... O-O {[%clk 0:02:55]} 6. Bb2 {[%clk 0:03:02]} 6... b6 {[%clk 0:02:55.3]} 7.
cxd5 {[%clk 0:03:01.6]} 7... exd5 {[%clk 0:02:54.9]} 8. d4 {[%clk 0:03:01.5]}
8... c5 {[%clk 0:02:52.3]} 9. Bd3 {[%clk 0:03:01.8]} 9... Bg4 {[%clk 0:02:48.9]}
10. O-O {[%clk 0:03:00.1]} 10... Re8 {[%clk 0:02:46.1]} 11. h3 {[%clk 0:03:00]}
11... Bh5 {[%clk 0:02:45.6]} 12. dxc5 {[%clk 0:02:59.3]} 12... bxc5 {[%clk
0:02:42.9]} 13. Be2 {[%clk 0:02:55.1]} 13... Nc6 {[%clk 0:02:38]} 14. Rc1 {[%clk
0:02:55.8]} 14... Rc8 {[%clk 0:02:13.9]} 15. Na4 {[%clk 0:02:52.8]} 15... Qa5
{[%clk 0:01:36.1]} 16. Bxf6 {[%clk 0:02:51.3]} 16... gxf6 {[%clk 0:01:35.6]} 17.
Qxd5 {[%clk 0:02:50.9]} 17... Bg6 {[%clk 0:01:32.1]} 18. Nh4 {[%clk 0:02:40]}
18... Nb4 {[%clk 0:01:27.6]} 19. Qf3 {[%clk 0:02:35.6]} 19... Nxa2 {[%clk
0:01:23.9]} 20. Rc4 {[%clk 0:02:31.8]} 20... Red8 {[%clk 0:01:15]} 21. Nf5
{[%clk 0:02:28.7]} 21... Bf8 {[%clk 0:01:14.2]} 22. h4 {[%clk 0:02:25]} 22... h5
{[%clk 0:00:56.1]} 23. g4 {[%clk 0:02:23]} 23... Rd5 {[%clk 0:00:45.5]} 24. Qxd5
{[%clk 0:02:17.1]} 1-0

[Event "Late-Titled-Tuesday-Blitz-August-29-2023"]
[Site "Chess.com"]
[Date "2023.08.29"]
[Round "1"]
[White "Tsyhanchuk_Stanislav"]
[Black "I_am_Javi"]
[Result "0-1"]
[WhiteElo "2423"]
[BlackElo "2734"]
[TimeControl "180+1"]
[EndTime "14:04:07 PDT"]
[Termination "I_am_Javi won by resignation"]

1. e4 {[%clk 0:03:00.9]} 1... e5 {[%clk 0:02:58.8]} 2. Nf3 {[%clk 0:03:00.5]}
2... Nc6 {[%clk 0:02:59.7]} 3. Bc4 {[%clk 0:03:00.6]} 3... g6 {[%clk 0:02:41.4]}
4. O-O {[%clk 0:02:59.9]} 4... Bg7 {[%clk 0:02:38.6]} 5. c3 {[%clk 0:02:57.8]}
5... d6 {[%clk 0:02:37.6]} 6. a4 {[%clk 0:02:57.8]} 6... Nge7 {[%clk 0:02:36.3]}
7. b4 {[%clk 0:02:58.1]} 7... a6 {[%clk 0:02:32.6]} 8. Bb2 {[%clk 0:02:55.9]}
8... O-O {[%clk 0:02:31]} 9. d3 {[%clk 0:02:47.8]} 9... h6 {[%clk 0:02:28.8]}
10. Nbd2 {[%clk 0:02:48.3]} 10... Kh7 {[%clk 0:02:27.6]} 11. Nb3 {[%clk
0:02:46.2]} 11... f5 {[%clk 0:02:28]} 12. b5 {[%clk 0:02:46]} 12... axb5 {[%clk
0:02:26.6]} 13. axb5 {[%clk 0:02:46.9]} 13... Rxa1 {[%clk 0:02:26.7]} 14. Qxa1
{[%clk 0:02:39.9]} 14... Nb8 {[%clk 0:02:27.2]} 15. Nfd2 {[%clk 0:02:26.6]}
15... Nd7 {[%clk 0:02:27]} 16. d4 {[%clk 0:02:17.9]} 16... f4 {[%clk 0:02:27.1]}
17. Nc1 {[%clk 0:02:11.4]} 17... g5 {[%clk 0:02:26.9]} 18. f3 {[%clk 0:02:09.7]}
18... Ng6 {[%clk 0:02:27.3]} 19. h3 {[%clk 0:02:08.4]} 19... h5 {[%clk
0:02:27.8]} 20. Be2 {[%clk 0:02:06.8]} 20... Nf6 {[%clk 0:02:27.6]} 21. Nd3
{[%clk 0:02:05.3]} 21... g4 {[%clk 0:02:27.4]} 22. hxg4 {[%clk 0:01:57.9]} 22...
hxg4 {[%clk 0:02:28.3]} 23. Kf2 {[%clk 0:01:55.1]} 23... Nxe4+ {[%clk
0:02:09.5]} 24. Nxe4 {[%clk 0:01:43.4]} 24... Qh4+ {[%clk 0:02:09.7]} 25. g3
{[%clk 0:01:42.1]} 25... fxg3+ {[%clk 0:02:10.3]} 26. Nxg3 {[%clk 0:01:42.3]}
26... Qh2+ {[%clk 0:02:04.3]} 27. Ke1 {[%clk 0:01:31]} 27... Qxg3+ {[%clk
0:02:04]} 28. Kd2 {[%clk 0:01:31.4]} 28... Bh6+ {[%clk 0:02:03.3]} 29. Kc2
{[%clk 0:01:31.2]} 29... gxf3 {[%clk 0:02:03.1]} 0-1

[Event "Late-Titled-Tuesday-Blitz-August-29-2023"]
[Site "Chess.com"]
[Date "2023.08.29"]
[Round "1"]
[White "BillieKimbah"]
[Black "Lion_DL"]
[Result "1-0"]
[WhiteElo "3039"]
[BlackElo "2511"]
[TimeControl "180+1"]
[EndTime "14:04:18 PDT"]
[Termination "BillieKimbah won by resignation"]

1. d4 {[%clk 0:03:00.9]} 1... Nf6 {[%clk 0:02:59.7]} 2. Nf3 {[%clk 0:03:00.4]}
2... e6 {[%clk 0:02:59.9]} 3. Bg5 {[%clk 0:03:00]} 3... h6 {[%clk 0:02:59.4]} 4.
Bh4 {[%clk 0:02:59.9]} 4... d5 {[%clk 0:02:58.7]} 5. e3 {[%clk 0:02:59.8]} 5...
c5 {[%clk 0:02:59.3]} 6. Nbd2 {[%clk 0:02:59.6]} 6... Nc6 {[%clk 0:02:59.7]} 7.
c3 {[%clk 0:02:58.9]} 7... Be7 {[%clk 0:02:54.1]} 8. Bd3 {[%clk 0:02:57.5]} 8...
b6 {[%clk 0:02:51.4]} 9. Ne5 {[%clk 0:02:55.2]} 9... Nxe5 {[%clk 0:02:47.5]} 10.
dxe5 {[%clk 0:02:56.1]} 10... Nd7 {[%clk 0:02:48]} 11. Bg3 {[%clk 0:02:37]}
11... Qc7 {[%clk 0:02:24.6]} 12. Qg4 {[%clk 0:02:30.9]} 12... O-O {[%clk
0:01:58.5]} 13. Nf3 {[%clk 0:02:30.1]} 13... c4 {[%clk 0:01:37.7]} 14. Bc2
{[%clk 0:02:29.6]} 14... Nc5 {[%clk 0:01:38.3]} 15. Bf4 {[%clk 0:02:27.1]} 15...
Kh8 {[%clk 0:01:32.7]} 16. Qh5 {[%clk 0:02:23.2]} 16... Nd3+ {[%clk 0:01:22.7]}
17. Bxd3 {[%clk 0:02:23.1]} 17... cxd3 {[%clk 0:01:23.6]} 18. Bxh6 {[%clk
0:02:21.2]} 18... gxh6 {[%clk 0:01:24.5]} 19. Qxh6+ {[%clk 0:02:22]} 19... Kg8
{[%clk 0:01:24.8]} 20. h4 {[%clk 0:02:22.4]} 20... f5 {[%clk 0:00:40.8]} 21. Rh3
{[%clk 0:02:13.8]} 21... Kf7 {[%clk 0:00:35.8]} 22. Qh5+ {[%clk 0:02:11.5]} 1-0